fUST/lending_fUST_20250521
["ID","MTS","AMOUNT","RATE_DAILY","PERIOD"]
[361795465,1747805820582,-430.0,0.00016438,2]
[361795466,1747805820604,-728.14,0.00016438,2]
[361795467,1747805820627,-430.0,0.00016438,2]
[361795468,1747805820649,-430.0,0.00016438,2]
[361795469,1747805820672,-430.0,0.00016438,2]
[361795470,1747805820695,-430.0,0.00016438,2]
[361795471,1747805820717,-430.0,0.00016438,2]
[361795472,1747805820739,-651.99,0.00016438,2]
[361795473,1747805820761,-430.0,0.00016438,2]
[361795474,1747805820784,-430.0,0.00016438,2]
[361795475,1747805820806,-430.0,0.00016438,2]
[361795476,1747805820828,-430.0,0.00016438,2]
[361795477,1747805820850,-430.0,0.00016438,2]
[361795478,1747805820872,-430.0,0.00016438,2]
[361795479,1747805820894,-430.0,0.00016438,2]
[361795480,1747805820919,-430.0,0.00016438,2]
[361795481,1747805820942,-488.88,0.00016438,2]
[361795482,1747805820964,-430.0,0.00016438,2]
[361795483,1747805820986,-430.0,0.00016438,2]
[361795484,1747805821008,-430.0,0.00016438,2]
[361795485,1747805821032,-1476.59,0.00016438,2]
[361795486,1747805821055,-430.0,0.00016438,2]
[361795487,1747805821078,-430.0,0.00016438,2]
[361795488,1747805821101,-430.0,0.00016438,2]
[361795489,1747805821123,-430.0,0.00016438,2]
[361795490,1747805821147,-430.0,0.00016438,2]
[361795491,1747805821172,-430.0,0.00016438,2]
[361795492,1747805821193,-430.0,0.00016438,2]
[361795493,1747805821218,-430.0,0.00016438,2]
[361795494,1747805821245,-1290.57,0.00016438,2]
[361795495,1747805821268,-430.0,0.00016438,2]
[361795496,1747805821296,-1136.52,0.00016438,2]
[361795497,1747805821319,-430.0,0.00016438,2]
[361795498,1747805821341,-435.31,0.00016438,2]
[361795499,1747805821365,-430.0,0.00016438,2]
[361795500,1747805821389,-430.0,0.00016438,2]
[361795501,1747805821411,-430.0,0.00016438,2]
[361795502,1747805821433,-430.0,0.00016438,2]
[361795503,1747805821458,-430.0,0.00016438,2]
[361795504,1747805821519,-430.0,0.00016438,2]
[361795505,1747805821564,-430.0,0.00016438,2]
[361795506,1747805821599,-430.0,0.00016712,2]
[361795507,1747805821632,-430.0,0.00016712,2]
[361795508,1747805821665,-488.96,0.00016712,2]
[361795509,1747805821699,-430.0,0.00016712,2]
[361795510,1747805821726,-430.0,0.00016712,2]
[361795511,1747805821757,-728.14,0.00016712,2]
[361795512,1747805821797,-430.0,0.00016712,2]
[361795513,1747805821829,-430.0,0.00016712,2]
[361795514,1747805821859,-183.28,0.00016712,2]
[361795515,1747805821888,-430.0,0.00016712,2]
[361795516,1747805821926,-430.0,0.00016712,2]
[361795517,1747805821956,-651.99,0.00016712,2]
[361795518,1747805821985,-430.0,0.00016712,2]
[361795519,1747805822018,-430.0,0.00016712,2]
[361795520,1747805822052,-430.0,0.00016712,2]
[361795521,1747805822079,-430.0,0.00016712,2]
[361795522,1747805822106,-430.0,0.00016712,2]
[361795523,1747805822143,-430.0,0.00016712,2]
[361795524,1747805822169,-430.0,0.00016712,2]
[361795525,1747805822195,-430.0,0.00016712,2]
[361795526,1747805822224,-488.88,0.00016712,2]
[361795527,1747805822249,-430.0,0.00016712,2]
[361795528,1747805822277,-430.0,0.00016712,2]
[361795529,1747805822309,-430.0,0.00016712,2]
[361795530,1747805822346,-1476.59,0.00016712,2]
[361795531,1747805822377,-430.0,0.00016712,2]
[361795532,1747805822406,-430.0,0.00016712,2]
[361795533,1747805822435,-430.0,0.00016712,2]
[361795534,1747805822465,-430.0,0.00016712,2]
[361795535,1747805822493,-430.0,0.00016712,2]
[361795536,1747805822521,-430.0,0.00016712,2]
[361795537,1747805822549,-430.0,0.00016712,2]
[361795538,1747805822576,-430.0,0.00016712,2]
[361795539,1747805822605,-1290.57,0.00016712,2]
[361795540,1747805822636,-430.0,0.00016712,2]
[361795541,1747805822664,-1136.52,0.00016712,2]
[361795542,1747805822690,-430.0,0.00016712,2]
[361795543,1747805822717,-435.31,0.00016712,2]
[361795544,1747805822744,-430.0,0.00016712,2]
[361795545,1747805822772,-430.0,0.00016712,2]
[361795546,1747805822800,-430.0,0.00016712,2]
[361795547,1747805822827,-430.0,0.00016712,2]
[361795548,1747805822854,-430.0,0.00016712,2]
[361795549,1747805822882,-430.0,0.00016712,2]
[361795550,1747805822908,-430.0,0.00016712,2]
[361795551,1747805822939,-4266.80676389,0.000169,2]
[361795552,1747805822966,-430.0,0.00016986,2]
[361795553,1747805822994,-430.0,0.00016986,2]
[361795554,1747805823023,-488.96,0.00016986,2]
[361795555,1747805823047,-430.0,0.00016986,2]
[361795556,1747805823069,-430.0,0.00016986,2]
[361795557,1747805823097,-728.14,0.00016986,2]
[361795558,1747805823341,-430.0,0.00016986,2]
[361795559,1747805823367,-430.0,0.00016986,2]
[361795560,1747805823391,-430.0,0.00016986,2]
[361795561,1747805823415,-651.99,0.00016986,2]
[361795562,1747805823439,-430.0,0.00016986,2]
[361795563,1747805823463,-430.0,0.00016986,2]
[361795564,1747805823487,-430.0,0.00016986,2]
[361795565,1747805823509,-430.0,0.00016986,2]
[361795566,1747805823532,-430.0,0.00016986,2]
[361795567,1747805823555,-430.0,0.00016986,2]
[361795568,1747805823578,-430.0,0.00016986,2]
[361795569,1747805823600,-430.0,0.00016986,2]
[361795570,1747805823622,-430.0,0.00016986,2]
[361795571,1747805823644,-488.88,0.00016986,2]
[361795572,1747805823666,-430.0,0.00016986,2]
[361795573,1747805823689,-430.0,0.00016986,2]
[361795574,1747805823722,-1476.59,0.00016986,2]
[361795575,1747805823752,-430.0,0.00016986,2]
[361795576,1747805823776,-430.0,0.00016986,2]
[361795577,1747805823801,-430.0,0.00016986,2]
[361795578,1747805823825,-430.0,0.00016986,2]
[361795579,1747805823850,-378.95804894,0.00016986,2]
[361795580,1747805823875,-430.0,0.00016986,2]
[361795581,1747805823900,-430.0,0.00016986,2]
[361795582,1747805823927,-1290.57,0.00016986,2]
[361795583,1747805823953,-430.0,0.00016986,2]
[361795584,1747805823978,-1136.52,0.00016986,2]
[361795585,1747805824002,-307.57904775,0.00016986,2]
[361795586,1747805824026,-435.31,0.00016986,2]
[361795587,1747805824050,-430.0,0.00016986,2]
[361795588,1747805824075,-430.0,0.00016986,2]
[361795589,1747805824098,-430.0,0.00016986,2]
[361795590,1747805824121,-430.0,0.00016986,2]
[361795591,1747805824145,-430.0,0.00016986,2]
[361795592,1747805824168,-430.0,0.00016986,2]
[361795593,1747805824191,-430.0,0.00016986,2]
[361795594,1747805824217,-4266.80676364,0.0001721,2]
[361795595,1747805824240,-430.0,0.0001726,2]
[361795596,1747805824263,-510.1751853,0.0001726,2]
[361795597,1747805824289,-430.0,0.0001726,2]
[361795598,1747805824312,-430.0,0.0001726,2]
[361795599,1747805824336,-430.0,0.0001726,2]
[361795600,1747805824358,-430.0,0.0001726,2]
[361795601,1747805824384,-430.0,0.0001726,2]
[361795602,1747805824408,-430.0,0.0001726,2]
[361795603,1747805824431,-430.0,0.0001726,2]
[361795604,1747805824457,-430.0,0.0001726,2]
[361795605,1747805824481,-488.96,0.0001726,2]
[361795606,1747805824506,-430.0,0.0001726,2]
[361795607,1747805824529,-430.0,0.0001726,2]
[361795608,1747805824554,-728.14,0.0001726,2]
[361795609,1747805824578,-430.0,0.0001726,2]
[361795610,1747805824603,-430.0,0.0001726,2]
[361795611,1747805824626,-430.0,0.0001726,2]
[361795612,1747805824652,-430.0,0.0001726,2]
[361795613,1747805824679,-651.99,0.0001726,2]
[361795614,1747805824727,-203.99305555,0.0001726,2]
[361795615,1747805824755,-151.0,0.0001726,2]
[361795616,1747805824778,-430.0,0.0001726,2]
[361795617,1747805824803,-430.0,0.0001726,2]
[361795618,1747805824826,-430.0,0.0001726,2]
[361795619,1747805824863,-430.0,0.0001726,2]
[361795620,1747805824889,-430.0,0.0001726,2]
[361795621,1747805824914,-430.0,0.0001726,2]
[361795622,1747805824938,-525.19,0.0001726,2]
[361795623,1747805824961,-430.0,0.0001726,2]
[361795624,1747805824985,-488.88,0.0001726,2]
[361795625,1747805825008,-430.0,0.0001726,2]
[361795626,1747805825032,-430.0,0.0001726,2]
[361795627,1747805825056,-1476.59,0.0001726,2]
[361795628,1747805825078,-430.0,0.0001726,2]
[361795629,1747805825101,-430.0,0.0001726,2]
[361795630,1747805825124,-430.0,0.0001726,2]
[361795631,1747805825147,-430.0,0.0001726,2]
[361795632,1747805825172,-430.0,0.0001726,2]
[361795633,1747805825196,-430.0,0.0001726,2]
[361795634,1747805825224,-1290.57,0.0001726,2]
[361795635,1747805825251,-430.0,0.0001726,2]
[361795636,1747805825278,-1136.52,0.0001726,2]
[361795637,1747805825316,-435.31,0.0001726,2]
[361795638,1747805825347,-268.52,0.0001726,2]
[361795639,1747805825384,-430.0,0.0001726,2]
[361795640,1747805825414,-430.0,0.0001726,2]
[361795641,1747805825439,-430.0,0.0001726,2]
[361795642,1747805825464,-430.0,0.0001726,2]
[361795643,1747805825490,-430.0,0.0001726,2]
[361795644,1747805825515,-430.0,0.0001726,2]
[361795645,1747805825542,-220.0995972,0.0001729,2]
[361795646,1747805825565,-269.18607124,0.00017335,2]
[361795647,1747805825591,-500.0,0.00017389,2]
[361795648,1747805825614,-547.86125434,0.00017389,2]
[361795649,1747805825641,-500.0,0.00017389,2]
[361795650,1747805825665,-465.96637869,0.00017389,2]
[361795651,1747805825689,-14029.80460583,0.00017389,3]
[361795652,1747805825715,-114173.74706264,0.0001739,2]
[361795653,1747805825738,-58843.64562641,0.0001739,2]
[361795654,1747805825760,-595.11106924,0.00017418,2]
[361795655,1747805825782,-894.64583333,0.000175,3]
[361795656,1747805825805,-212.41679935,0.000175,3]
[361795657,1747805825828,-193.99999999,0.000175,2]
[361795658,1747805825850,-2063.0,0.000175,2]
[361795659,1747805825873,-2063.0,0.000175,2]
[361795660,1747805825898,-2063.0,0.000175,2]
[361795661,1747805825920,-2063.0,0.000175,2]
[361795662,1747805825943,-2063.0,0.000175,2]
[361795663,1747805825966,-2063.0,0.000175,2]
[361795664,1747805825989,-2063.0,0.000175,2]
[361795665,1747805826011,-2063.0,0.000175,2]
[361795666,1747805826034,-2063.0,0.000175,2]
[361795667,1747805826056,-2063.0,0.000175,2]
[361795668,1747805826084,-4266.80676364,0.00017521,2]
[361795669,1747805826106,-314.5140147,0.00017533,3]
[361795670,1747805826129,-12643.00196899,0.00017533,3]
[361795671,1747805826153,-369.07958742,0.00017534,2]
[361795672,1747805826175,-380.0,0.00017534,2]
[361795673,1747805826198,-430.0,0.00017534,2]
[361795674,1747805826221,-430.0,0.00017534,2]
[361795675,1747805826244,-430.0,0.00017534,2]
[361795676,1747805826267,-374.6122092,0.00017534,2]
[361795677,1747805826296,-430.0,0.00017534,2]
[361795678,1747805826317,-430.0,0.00017534,2]
[361795679,1747805826341,-288.35921725,0.00017534,2]
[361795680,1747805826366,-430.0,0.00017534,2]
[361795681,1747805826533,-430.0,0.00017534,2]
[361795682,1747805826557,-151.0,0.00017534,2]
[361795683,1747805826579,-526.206379,0.00017534,2]
[361795684,1747805826602,-526.206379,0.00017534,2]
[361795685,1747805826624,-151.0,0.00017534,2]
[361795686,1747805826650,-151.0,0.00017534,2]
[361795687,1747805826674,-430.0,0.00017534,2]
[361795688,1747805826697,-488.96,0.00017534,2]
[361795689,1747805826720,-430.0,0.00017534,2]
[361795690,1747805826742,-430.0,0.00017534,2]
[361795691,1747805826765,-728.14,0.00017534,2]
[361795692,1747805826790,-430.0,0.00017534,2]
[361795693,1747805826812,-430.0,0.00017534,2]
[361795694,1747805826836,-430.0,0.00017534,2]
[361795695,1747805826860,-430.0,0.00017534,2]
[361795696,1747805826883,-651.99,0.00017534,2]
[361795697,1747805826907,-430.0,0.00017534,2]
[361795698,1747805826930,-430.0,0.00017534,2]
[361795699,1747805826952,-544.5971203,0.00017534,2]
[361795700,1747805826974,-430.0,0.00017534,2]
[361795701,1747805826997,-430.0,0.00017534,2]
[361795702,1747805827019,-430.0,0.00017534,2]
[361795703,1747805827042,-430.0,0.00017534,2]
[361795704,1747805827064,-488.88,0.00017534,2]
[361795705,1747805827088,-430.0,0.00017534,2]
[361795706,1747805827111,-430.0,0.00017534,2]
[361795707,1747805827136,-1476.59,0.00017534,2]
[361795708,1747805827159,-430.0,0.00017534,2]
[361795709,1747805827182,-430.0,0.00017534,2]
[361795710,1747805827205,-430.0,0.00017534,2]
[361795711,1747805827228,-430.0,0.00017534,2]
[361795712,1747805827251,-430.0,0.00017534,2]
[361795713,1747805827273,-430.0,0.00017534,2]
[361795714,1747805827298,-500.0,0.00017534,2]
[361795715,1747805827320,-500.0,0.00017534,2]
[361795716,1747805827342,-500.0,0.00017534,2]
[361795717,1747805827365,-500.0,0.00017534,2]
[361795718,1747805827387,-500.0,0.00017534,2]
[361795719,1747805827408,-500.0,0.00017534,2]
[361795720,1747805827430,-500.0,0.00017534,2]
[361795721,1747805827452,-500.0,0.00017534,2]
[361795722,1747805827474,-266.0,0.00017534,2]
[361795723,1747805827498,-1290.57,0.00017534,2]
[361795724,1747805827520,-430.0,0.00017534,2]
[361795725,1747805827546,-1136.52,0.00017534,2]
[361795726,1747805827569,-435.31,0.00017534,2]
[361795727,1747805827592,-430.0,0.00017534,2]
[361795728,1747805827615,-430.0,0.00017534,2]
[361795729,1747805827637,-430.0,0.00017534,2]
[361795730,1747805827661,-430.0,0.00017534,2]
[361795731,1747805827685,-430.0,0.00017534,2]
[361795732,1747805827709,-430.0,0.00017534,2]
[361795733,1747805827733,-420.0,0.00017571,2]
[361795734,1747805827758,-404.79405334,0.00017637,2]
[361795735,1747805827781,-339.4432438,0.00017657,2]
[361795736,1747805827804,-220.09959717,0.00017669,2]
[361795737,1747805827826,-503.30338917,0.00017803,2]
[361795738,1747805827848,-507.0458656,0.00017803,2]
[361795739,1747805827871,-430.0,0.00017808,2]
[361795740,1747805827896,-430.0,0.00017808,2]
[361795741,1747805827920,-430.0,0.00017808,2]
[361795742,1747805827943,-430.0,0.00017808,2]
[361795743,1747805827965,-547.94206121,0.00017808,2]
[361795744,1747805827988,-430.0,0.00017808,2]
[361795745,1747805828011,-430.0,0.00017808,2]
[361795746,1747805828036,-430.0,0.00017808,2]
[361795747,1747805828058,-488.96,0.00017808,2]
[361795748,1747805828081,-430.0,0.00017808,2]
[361795749,1747805828104,-430.0,0.00017808,2]
[361795750,1747805828127,-728.14,0.00017808,2]
[361795751,1747805828150,-430.0,0.00017808,2]
[361795752,1747805828172,-430.0,0.00017808,2]
[361795753,1747805828195,-430.0,0.00017808,2]
[361795754,1747805828217,-430.0,0.00017808,2]
[361795755,1747805828239,-651.99,0.00017808,2]
[361795756,1747805828260,-430.0,0.00017808,2]
[361795757,1747805828286,-430.0,0.00017808,2]
[361795758,1747805828308,-268.39,0.00017808,2]
[361795759,1747805828332,-430.0,0.00017808,2]
[361795760,1747805828354,-430.0,0.00017808,2]
[361795761,1747805828379,-525.48658269,0.00017808,2]
[361795762,1747805828403,-151.0,0.00017808,2]
[361795763,1747805828427,-488.88,0.00017808,2]
[361795764,1747805828452,-430.0,0.00017808,2]
[361795765,1747805828475,-430.0,0.00017808,2]
[361795766,1747805828501,-1476.59,0.00017808,2]
[361795767,1747805828523,-151.0,0.00017808,2]
[361795768,1747805828546,-430.0,0.00017808,2]
[361795769,1747805828569,-151.0,0.00017808,2]
[361795770,1747805828592,-430.0,0.00017808,2]
[361795771,1747805828616,-430.0,0.00017808,2]
[361795772,1747805828640,-430.0,0.00017808,2]
[361795773,1747805828662,-151.0,0.00017808,2]
[361795774,1747805828684,-151.0,0.00017808,2]
[361795775,1747805828706,-430.0,0.00017808,2]
[361795776,1747805828729,-430.0,0.00017808,2]
[361795777,1747805828752,-1290.57,0.00017808,2]
[361795778,1747805828775,-430.0,0.00017808,2]
[361795779,1747805828798,-1136.52,0.00017808,2]
[361795780,1747805828822,-283.705914,0.00017808,2]
[361795781,1747805828845,-435.31,0.00017808,2]
[361795782,1747805828868,-283.705914,0.00017808,2]
[361795783,1747805828891,-151.0,0.00017808,2]
[361795784,1747805828916,-430.0,0.00017808,2]
[361795785,1747805828940,-177.990259,0.00017808,2]
[361795786,1747805828965,-177.990259,0.00017808,2]
[361795787,1747805828988,-430.0,0.00017808,2]
[361795788,1747805829010,-151.0,0.00017808,2]
[361795789,1747805829032,-430.0,0.00017808,2]
[361795790,1747805829056,-430.0,0.00017808,2]
[361795791,1747805829078,-151.0,0.00017808,2]
[361795792,1747805829102,-430.0,0.00017808,2]
[361795793,1747805829124,-151.0,0.00017808,2]
[361795794,1747805829148,-212.832249,0.00017808,2]
[361795795,1747805829171,-430.0,0.00017808,2]
[361795796,1747805829197,-4266.80676364,0.00017831,2]
[361795797,1747805829223,-3462.1,0.000179,2]
[361795798,1747805829245,-3462.1,0.000179,2]
[361795799,1747805829267,-3462.1,0.000179,2]
[361795800,1747805829297,-151.0,0.000179,2]
[361795801,1747805829323,-526.206379,0.000179,2]
[361795802,1747805829347,-526.206379,0.000179,2]
[361795803,1747805829372,-151.0,0.000179,2]
[361795804,1747805829399,-151.0,0.000179,2]
[361795805,1747805829423,-355.418258,0.00017955,2]
[361795806,1747805829445,-216.296516,0.00017955,2]
[361795807,1747805829470,-355.418258,0.00017955,2]
[361795808,1747805829494,-216.296516,0.00017955,2]
[361795809,1747805829516,-151.0,0.00017955,2]
[361795810,1747805829539,-151.0,0.00017955,2]
[361795811,1747805829567,-151.0,0.00017982,2]
[361795812,1747805829590,-151.0,0.00017982,2]
[361795813,1747805829615,-151.0,0.00017982,2]
[361795814,1747805829638,-151.0,0.00017982,2]
[361795815,1747805829665,-156.051776,0.00017982,2]
[361795816,1747805829687,-156.051776,0.00017982,2]
[361795817,1747805829710,-203.6051639,0.00018,2]
[361795818,1747805829733,-250.0,0.00018,2]
[361795819,1747805829756,-250.0,0.00018,2]
[361795820,1747805829778,-250.0,0.00018,2]
[361795821,1747805829800,-67.3032296,0.00018,2]
[361795824,1747806444140,-232.2,0.00013426,2]
[361795825,1747806458381,1410.41957855,0.00019,30]
[361795858,1747806632707,-278.22989145,0.00013292,2]
[361795876,1747806638516,-1020.0,0.00013292,2]
[361795879,1747806638529,-3701.77010855,0.00013292,2]
[361795881,1747806638539,-328.516332,0.00013699,2]
[361795883,1747806638549,-300.0,0.00015549,2]
[361795885,1747806638559,-241.0,0.00015549,2]
[361795887,1747806638569,-9722.5104228,0.0001555,2]
[361795889,1747806638582,-3704.68119843,0.000159,2]
[361795891,1747806638592,-200.51462812,0.00015973,2]
[361795892,1747806638602,-3704.68119828,0.00016245,2]
[361795894,1747806638611,-303.59554004,0.00016338,2]
[361795896,1747806638622,-232.6,0.00016438,2]
[361795899,1747806638632,-430.0,0.00016438,2]
[361795900,1747806638642,-430.0,0.00016438,2]
[361795902,1747806638654,-408.20848093,0.00016438,2]
[361795904,1747806638664,-430.0,0.00016438,2]
[361795907,1747806638674,-450.28858412,0.00016438,2]
[361795909,1747806638683,-430.0,0.00016438,2]
[361795911,1747806638693,-430.0,0.00016438,2]
[361795913,1747806638702,-481.7,0.00016438,2]
[361795916,1747806638712,-430.0,0.00016438,2]
[361795918,1747806638722,-430.0,0.00016438,2]
[361795919,1747806638731,-430.0,0.00016438,2]
[361795921,1747806638741,-1107.44,0.00016438,2]
[361795923,1747806638751,-319.36189208,0.00016438,2]
[361795925,1747806638761,-460.02147148,0.00016438,2]
[361795927,1747806638771,-967.93,0.00016438,2]
[361795929,1747806638781,-430.0,0.00016438,2]
[361795930,1747806638791,-430.0,0.00016438,2]
[361795931,1747806638800,-430.0,0.00016438,2]
[361795932,1747806638810,-430.0,0.00016438,2]
[361795933,1747806638820,-852.39,0.00016438,2]
[361795934,1747806638830,-430.0,0.00016438,2]
[361795935,1747806638842,-430.0,0.00016438,2]
[361795936,1747806638852,-430.0,0.00016438,2]
[361795937,1747806638862,-430.0,0.00016438,2]
[361795938,1747806638872,-430.0,0.00016438,2]
[361795939,1747806638882,-430.0,0.00016438,2]
[361795940,1747806638892,-430.0,0.00016438,2]
[361795942,1747806638901,-445.36563044,0.00016438,2]
[361795943,1747806638911,-430.0,0.00016438,2]
[361795945,1747806638920,-430.0,0.00016438,2]
[361795947,1747806638930,-430.0,0.00016438,2]
[361795949,1747806638940,-430.0,0.00016438,2]
[361795951,1747806638950,-430.0,0.00016438,2]
[361795953,1747806638959,-546.11,0.00016438,2]
[361795955,1747806638968,-430.0,0.00016438,2]
[361795957,1747806638977,-430.0,0.00016438,2]
[361795959,1747806638987,-430.0,0.00016438,2]
[361795961,1747806638996,-485.45819942,0.00016438,2]
[361795962,1747806639006,-488.99,0.00016438,2]
[361795964,1747806639015,-430.0,0.00016438,2]
[361795966,1747806639025,-430.0,0.00016438,2]
[361795969,1747806639039,-430.0,0.00016438,2]
[361795971,1747806639048,-430.0,0.00016438,2]
[361795973,1747806639058,-430.0,0.00016438,2]
[361795975,1747806639067,-500.0,0.00016589,2]
[361795977,1747806639077,-519.64300721,0.00016589,2]
[361795979,1747806639087,-500.0,0.00016589,2]
[361795981,1747806639097,-3704.68119828,0.0001659,2]
[361795983,1747806639106,-430.0,0.00016712,2]
[361795985,1747806639115,-430.0,0.00016712,2]
[361795987,1747806639125,-430.0,0.00016712,2]
[361795989,1747806639135,-430.0,0.00016712,2]
[361795991,1747806639145,-430.0,0.00016712,2]
[361795993,1747806639154,-403.58155402,0.00016712,2]
[361795994,1747806639167,-78.11844598,0.00016712,2]
[361795995,1747806639178,-430.0,0.00016712,2]
[361795996,1747806639187,-430.0,0.00016712,2]
[361795997,1747806639197,-430.0,0.00016712,2]
[361795998,1747806639208,-1107.44,0.00016712,2]
[361795999,1747806639219,-967.93,0.00016712,2]
[361796000,1747806639228,-430.0,0.00016712,2]
[361796001,1747806639239,-430.0,0.00016712,2]
[361796002,1747806639248,-430.0,0.00016712,2]
[361796003,1747806639258,-430.0,0.00016712,2]
[361796004,1747806639268,-852.39,0.00016712,2]
[361796005,1747806639278,-430.0,0.00016712,2]
[361796006,1747806639289,-430.0,0.00016712,2]
[361796007,1747806639299,-107.32498625,0.00016712,2]
[361796008,1747806639312,-322.67501375,0.00016712,2]
[361796009,1747806639322,-104.70880337,0.00016712,2]
[361796010,1747806639335,-325.29119663,0.00016712,2]
[361796011,1747806639345,-203.60589455,0.00016712,2]
[361796012,1747806639358,-226.39410545,0.00016712,2]
[361796013,1747806639368,-430.0,0.00016712,2]
[361796014,1747806639378,-430.0,0.00016712,2]
[361796015,1747806639388,-430.0,0.00016712,2]
[361796016,1747806639398,-430.0,0.00016712,2]
[361796017,1747806639408,-430.0,0.00016712,2]
[361796018,1747806639417,-439.49009447,0.00016712,2]
[361796019,1747806639428,-430.0,0.00016712,2]
[361796020,1747806639438,-546.11,0.00016712,2]
[361796021,1747806639449,-430.0,0.00016712,2]
[361796022,1747806639459,-430.0,0.00016712,2]
[361796023,1747806639469,-430.0,0.00016712,2]
[361796024,1747806639479,-488.99,0.00016712,2]
[361796025,1747806639489,-430.0,0.00016712,2]
[361796026,1747806639499,-430.0,0.00016712,2]
[361796027,1747806639510,-430.0,0.00016712,2]
[361796028,1747806639519,-430.0,0.00016712,2]
[361796029,1747806639530,-430.0,0.00016712,2]
[361796030,1747806639540,-3704.68119828,0.00016934,2]
[361796031,1747806639550,-430.0,0.00016986,2]
[361796032,1747806639560,-430.0,0.00016986,2]
[361796033,1747806639572,-430.0,0.00016986,2]
[361796034,1747806639584,-430.0,0.00016986,2]
[361796035,1747806639594,-194.17,0.00016986,2]
[361796036,1747806639604,-481.7,0.00016986,2]
[361796037,1747806639615,-430.0,0.00016986,2]
[361796038,1747806639625,-395.90485989,0.00016986,2]
[361796039,1747806639635,-557.99417996,0.00016986,2]
[361796040,1747806639645,-1107.44,0.00016986,2]
[361796041,1747806639658,-967.93,0.00016986,2]
[361796042,1747806639667,-430.0,0.00016986,2]
[361796043,1747806639677,-430.0,0.00016986,2]
[361796044,1747806639688,-430.0,0.00016986,2]
[361796045,1747806639698,-430.0,0.00016986,2]
[361796046,1747806639709,-852.39,0.00016986,2]
[361796047,1747806639719,-430.0,0.00016986,2]
[361796048,1747806639729,-430.0,0.00016986,2]
[361796049,1747806639740,-441.86,0.00016986,2]
[361796050,1747806639750,-430.0,0.00016986,2]
[361796051,1747806639760,-430.0,0.00016986,2]
[361796052,1747806639770,-229.79,0.00016986,2]
[361796053,1747806639780,-430.0,0.00016986,2]
[361796054,1747806639790,-430.0,0.00016986,2]
[361796055,1747806639800,-430.0,0.00016986,2]
[361796056,1747806639811,-430.0,0.00016986,2]
[361796057,1747806639821,-430.0,0.00016986,2]
[361796058,1747806639831,-546.11,0.00016986,2]
[361796059,1747806639842,-430.0,0.00016986,2]
[361796060,1747806639853,-430.0,0.00016986,2]
[361796061,1747806639862,-430.0,0.00016986,2]
[361796062,1747806639872,-488.99,0.00016986,2]
[361796063,1747806639882,-264.89277351,0.00016986,2]
[361796064,1747806639893,-201.09732981,0.00016986,2]
[361796065,1747806639903,-430.0,0.00016986,2]
[361796066,1747806639913,-430.0,0.00016986,2]
[361796067,1747806639922,-430.0,0.00016986,2]
[361796068,1747806639933,-420.0,0.00017008,2]